DepartmentFamily,Entity,Date,ExpenseType,ExpenseArea,Supplier,Transaction Number,Amount,Description,Supplier Type,VATRegistrationNumber
BEIS,The Insolvency Service,01/09/2022,Off-Site Storage,Official Receiver Services,Shaping Cloud Ltd,300040056,"23,150.00",Storage - OR,,997694722
BEIS,The Insolvency Service,02/09/2022,Training,Digital Technology Services,KPMG LLP,300040209,"1,009.00",Training,Large,791788859
BEIS,The Insolvency Service,02/09/2022,Training,Digital Technology Services,KPMG LLP,300040212,973.00,Training,Large,791788859
BEIS,The Insolvency Service,02/09/2022,Training,Digital Technology Services,KPMG LLP,300040213,"1,558.00",Training,Large,791788859
BEIS,The Insolvency Service,02/09/2022,Legal - Costs of Criminal Prosecutions and Advice,Legal Services Division,18 Red Lion Court Chambers,300040233,"2,925.00",Costs of Criminal Prosecutions and Advice,SME,766793665
BEIS,The Insolvency Service,02/09/2022,ICT,Digital Technology Services,Advanced 365 Limited,300040167,"133,280.42",IT - Run,Large,927547983
BEIS,The Insolvency Service,02/09/2022,ICT,Digital Technology Services,Advanced 365 Limited,300040168,"133,280.42",IT - Run,Large,927547983
BEIS,The Insolvency Service,02/09/2022,ICT,Digital Technology Services,Advanced 365 Limited,300040169,"133,280.42",IT - Run,Large,927547983
BEIS,The Insolvency Service,02/09/2022,ICT,Digital Technology Services,e2e-assure Ltd,300040217,"22,823.16",IT - Run,SME,173116233
BEIS,The Insolvency Service,02/09/2022,Staff Costs - Non-Perms,Finance & Commercial,Spinwell Global Ltd,300040100,"1,987.24",Agency Staff & Contractor Costs,,257189569
BEIS,The Insolvency Service,02/09/2022,Staff Costs - Non-Perms,Finance & Commercial,Spinwell Global Ltd,300040174,"3,312.06",Agency Staff & Contractor Costs,,257189569
BEIS,The Insolvency Service,05/09/2022,"Printing, Stationary, Postage & Confidential Waste",Chief Executive Office,Cision,300040254,543.00,Publications,Large,757158012
BEIS,The Insolvency Service,05/09/2022,Training,Finance & Commercial,KPMG,300040232,676,Training,Large,
BEIS,The Insolvency Service,05/09/2022,ICT,Business Service Division,Syntec Ltd,300040253,592.12,Telephones - Charges,SME,264618586
BEIS,The Insolvency Service,05/09/2022,Training,Finance & Commercial,KPMG LLP,300040204,733.20,Training,Large,791788859
BEIS,The Insolvency Service,05/09/2022,Training,Finance & Commercial,KPMG LLP,300040207,"2,073.00",Training,Large,791788859
BEIS,The Insolvency Service,05/09/2022,Training,Finance & Commercial,KPMG LLP,300040208,863.00,Training,Large,791788859
BEIS,The Insolvency Service,05/09/2022,Training,Finance & Commercial,KPMG LLP,300040211,738.00,Training,Large,791788859
BEIS,The Insolvency Service,05/09/2022,Training,Digital Technology Services,KPMG LLP,300040214,676.00,Training,Large,791788859
BEIS,The Insolvency Service,05/09/2022,Training,Finance & Commercial,KPMG LLP,300040215,807.00,Training,Large,791788859
BEIS,The Insolvency Service,05/09/2022,Legal - Costs of Criminal Prosecutions and Advice,Legal Services Division,5 St Andrews Hill,300040245,729.36,Costs of Criminal Prosecutions and Advice,SME,703074472
BEIS,The Insolvency Service,05/09/2022,Legal - Costs of Criminal Prosecutions and Advice,Legal Services Division,Broadway House Chambers,300040249,708,Costs of Criminal Prosecutions and Advice,,344436209
BEIS,The Insolvency Service,06/09/2022,"Printing, Stationary, Postage & Confidential Waste",Shared Contracts,Banner Business Services Ltd,300040262,"2,759.11",Office supplies,Large,731860439
BEIS,The Insolvency Service,06/09/2022,Off-Site Storage,Official Receiver Services,Iron Mountain (Uk) Ltd,300040248,"3,245.04",Storage - HQ,Large,607937516
BEIS,The Insolvency Service,06/09/2022,Estates - Property,Finance & Commercial,Cbre Limited,300040162,"2,583.53",Rent,Large,
BEIS,The Insolvency Service,06/09/2022,Estates - Property,Finance & Commercial,Cbre Limited,300040205,"1,848.77",Rent,Large,
BEIS,The Insolvency Service,06/09/2022,Estates - Property,Finance & Commercial,GPA (C/O Montagu Evans LLP),300040146,"3,712.86",Rent,Large,
BEIS,The Insolvency Service,06/09/2022,Estates - Property,Finance & Commercial,GPA (C/O Montagu Evans LLP),300040146,"3,645.00",Rent,Large,
BEIS,The Insolvency Service,06/09/2022,ICT,Digital Technology Services,Ee Ltd (Air Time),300040279,"19,581.71",Telephones - Charges,Large,771592016
BEIS,The Insolvency Service,06/09/2022,ICT,Digital Technology Services,Ee Ltd (Air Time),300040280,894.00,Telephones - Charges,Large,771592016
BEIS,The Insolvency Service,06/09/2022,Legal - Costs of Civil Litigation Disqualifications,Legal Services Division,Exchange Chambers,300040263,"1,320.00",Civil Litigation Disqualifications Counsel Fees,SME,
BEIS,The Insolvency Service,06/09/2022,Training,People & Communications,KPMG LLP,300040283,"4,311.00",Training,Large,791788859
BEIS,The Insolvency Service,06/09/2022,Off-Site Storage,Official Receiver Services,Restore Plc (Records Management),300040278,"8,103.63",Storage - HQ,Large,843863011
BEIS,The Insolvency Service,06/09/2022,ICT,Digital Technology Services,Geoff Smith Associates Ltd,300040228,"17,917.92",IT - Run,SME,813047166
BEIS,The Insolvency Service,06/09/2022,Off-Site Storage,Official Receiver Services,Purdie Worldwide,300040231,930.69,Storage - HQ,Large,208569880
BEIS,The Insolvency Service,06/09/2022,Off-Site Storage,Official Receiver Services,Crown Records Management,300040241,"1,220.34",Storage - HQ,SME,902181658
BEIS,The Insolvency Service,06/09/2022,Staff Costs - Non-Perms,Projects,Red Snapper Recruitment,300039965,"3,300.00",Outside IR35 Non Perm Resource,SME,835435718
BEIS,The Insolvency Service,06/09/2022,Other Costs,Official Receiver Services,Controlaccount PLC,300040265,612,Financial Searches,SME,945758964
BEIS,The Insolvency Service,06/09/2022,Other Costs,Official Receiver Services,Controlaccount PLC,300040268,"4,143.96",Financial Searches,SME,945758964
BEIS,The Insolvency Service,06/09/2022,Other Costs,Official Receiver Services,Controlaccount PLC,300040269,"4,441.56",Financial Searches,SME,945758964
BEIS,The Insolvency Service,06/09/2022,Other Costs,Official Receiver Services,Controlaccount PLC,300040270,"4,098.00",Financial Searches,SME,945758964
BEIS,The Insolvency Service,06/09/2022,Other Costs,Official Receiver Services,Controlaccount PLC,300040272,930.00,Financial Searches,SME,945758964
BEIS,The Insolvency Service,06/09/2022,ICT,Digital Technology Services,Phoenix Software Limited,300040230,"187,790.40",IT - Run,SME,755349015
BEIS,The Insolvency Service,07/09/2022,Staff Costs - Perms,People & Communications,Edenred (UK Group) Limited,300040243,"60,975.00",Staff Costs - Perms,,
BEIS,The Insolvency Service,07/09/2022,HR,People & Communications,Health Assurred Limited,300040291,597.30,Staff Welfare,SME,927524217
BEIS,The Insolvency Service,08/09/2022,Legal - Costs of Recovering Civil Costs Awarded,Legal Services Division,Womble Bond Dickinson,300040303,"1,135.49",Recovery of Civil Proceedings Costs Awarded,Large,123392627
BEIS,The Insolvency Service,08/09/2022,Legal - Costs of Civil Litigation Disqualifications,Legal Services Division,Womble Bond Dickinson,300040304,"6,864.09",Costs of Civil Litigation Disqualifications,Large,123392627
BEIS,The Insolvency Service,08/09/2022,Legal - Costs of Civil Litigation Disqualifications,Legal Services Division,Womble Bond Dickinson,300040305,"91,583.47",Costs of Civil Litigation Disqualifications,Large,123392627
BEIS,The Insolvency Service,08/09/2022,Legal - Outsourced Investigation,Investigations & Enforcement Services,Howes Percival,300040332,"6,030.50",Solicitors Investigations,Large,119523573
BEIS,The Insolvency Service,08/09/2022,Legal - Outsourced Investigation,Investigations & Enforcement Services,Howes Percival,300040344,"24,315.50",Solicitors Investigations,Large,119523573
BEIS,The Insolvency Service,08/09/2022,Legal - Costs of Recovering Civil Costs Awarded,Legal Services Division,Shepherd & Wedderburn Ws,300040308,601.46,Recovery of Civil Proceedings Costs Awarded,,125425142
BEIS,The Insolvency Service,08/09/2022,Legal - Outsourced Investigation,Investigations & Enforcement Services,Burness Paull & Williamsons Solicitors,300040321,"7,397.50",Solicitors Investigations,Large,216218532
BEIS,The Insolvency Service,08/09/2022,Legal - Costs of Civil Litigation Disqualifications,Legal Services Division,Burness Paull & Williamsons Solicitors,300040329,"3,381.50",Costs of Civil Litigation Disqualifications,Large,216218532
BEIS,The Insolvency Service,08/09/2022,Legal - Costs of Civil Litigation Disqualifications,Legal Services Division,Shepherd & Wedderburn Ws,300040307,"1,107.93",Costs of Civil Litigation Disqualifications,,890559386
BEIS,The Insolvency Service,08/09/2022,Legal - Outsourced Investigation,Investigations & Enforcement Services,Tlt Llp,300040309,"7,491.70",Solicitors Investigations,Large,3574583240
BEIS,The Insolvency Service,08/09/2022,Legal - Outsourced Investigation,Investigations & Enforcement Services,Tlt Llp,300040310,"14,196.00",Solicitors Investigations,Large,3574583240
BEIS,The Insolvency Service,08/09/2022,Legal - Outsourced Investigation,Investigations & Enforcement Services,Tlt Llp,300040311,"10,283.97",Solicitors Investigations,Large,3574583240
BEIS,The Insolvency Service,08/09/2022,ICT,Digital Technology Services,Netcompany UK Ltd,300040287,"60,854.40",IT - Run,Large,171809009
BEIS,The Insolvency Service,08/09/2022,Staff Costs - Non-Perms,Projects,SmartSourcing,300040300,"5,634.00",Agency Staff & Contractor Costs,SME,788507869
BEIS,The Insolvency Service,08/09/2022,Staff Costs - Non-Perms,Projects,SmartSourcing,300040301,"4,820.16",Agency Staff & Contractor Costs,SME,788507869
BEIS,The Insolvency Service,08/09/2022,Staff Costs - Non-Perms,Projects,SmartSourcing,300040312,"2,193.60",Agency Staff & Contractor Costs,SME,788507869
BEIS,The Insolvency Service,08/09/2022,Staff Costs - Non-Perms,Projects,SmartSourcing,300040355,"3,800.16",Agency Staff & Contractor Costs,SME,788507869
BEIS,The Insolvency Service,08/09/2022,Staff Costs - Non-Perms,Projects,SmartSourcing,300040360,"11,400.48",Agency Staff & Contractor Costs,SME,788507869
BEIS,The Insolvency Service,08/09/2022,Staff Costs - Non-Perms,Projects,SmartSourcing,300040361,"5,484.00",Agency Staff & Contractor Costs,SME,788507869
BEIS,The Insolvency Service,09/09/2022,"Legal, Translation & Consultancy",People & Communications,Government Legal Department,300040382,"1,883.10",Legal Costs Other,Public Sector,888823066
BEIS,The Insolvency Service,09/09/2022,"Legal, Translation & Consultancy",People & Communications,Government Legal Department,300040395,800.00,Legal Costs Other,Public Sector,888823066
BEIS,The Insolvency Service,09/09/2022,Legal - Costs of Civil Litigation Disqualifications,Legal Services Division,Howes Percival,300040337,"22,644.50",Costs of Civil Litigation Disqualifications,Large,119523573
BEIS,The Insolvency Service,09/09/2022,Legal - Costs of Recovering Civil Costs Awarded,Legal Services Division,Howes Percival,300040345,"1,444.00",Recovery of Civil Proceedings Costs Awarded,Large,119523573
BEIS,The Insolvency Service,09/09/2022,Training,People & Communications,Dods Parlimentary Communications Ltd,300040385,"1,770.00",Training,SME,792067900
BEIS,The Insolvency Service,09/09/2022,"Printing, Stationary, Postage & Confidential Waste",Shared Contracts,Restore Datashred (Data Solutions 2016 Ltd T/A Restore Data),300040294,"1,606.61",Confidential Waste,Large,240193143
BEIS,The Insolvency Service,09/09/2022,Legal - Costs of Criminal Prosecutions and Advice,Legal Services Division,23 Essex Street,300040392,"3,430.00",Costs of Criminal Prosecutions and Advice,,524199244
BEIS,The Insolvency Service,09/09/2022,Estates - Property,Finance & Commercial,Colliers International Property Consultants Ltd,300040397,"161,977.50",Rent,Large,158893550
BEIS,The Insolvency Service,09/09/2022,Estates - Property,Finance & Commercial,Colliers International Property Consultants Ltd,300040398,"53,594.40",Landlord Service Charge,Large,158893550
BEIS,The Insolvency Service,09/09/2022,Estates - Property,Finance & Commercial,Edf Energy,300040292,826.45,Electricity,Large,523041202
BEIS,The Insolvency Service,09/09/2022,"Printing, Stationary, Postage & Confidential Waste",Shared Contracts,City Sprint Uk Ltd,300040295,"1,248.64",Courier,SME,997327364
BEIS,The Insolvency Service,09/09/2022,Estates - Property,Finance & Commercial,Plymouth City Council (Rent),300040409,"20,007.50",Rent,Public Sector,
BEIS,The Insolvency Service,09/09/2022,Staff Costs - Non-Perms,Projects,SmartSourcing,300040353,"20,244.67",Agency Staff & Contractor Costs,SME,788507869
BEIS,The Insolvency Service,09/09/2022,Staff Costs - Non-Perms,Projects,SmartSourcing,300040357,"8,136.29",Agency Staff & Contractor Costs,SME,788507869
BEIS,The Insolvency Service,09/09/2022,Staff Costs - Non-Perms,Projects,SmartSourcing,300040358,"12,074.30",Agency Staff & Contractor Costs,SME,788507869
BEIS,The Insolvency Service,09/09/2022,Staff Costs - Non-Perms,Projects,SmartSourcing,300040359,"21,252.67",Agency Staff & Contractor Costs,SME,788507869
BEIS,The Insolvency Service,09/09/2022,Staff Costs - Non-Perms,Projects,SmartSourcing,300040364,"27,957.60",Agency Staff & Contractor Costs,SME,788507869
BEIS,The Insolvency Service,09/09/2022,Staff Costs - Non-Perms,Projects,SmartSourcing,300040365,"25,552.80",Agency Staff & Contractor Costs,SME,788507869
BEIS,The Insolvency Service,09/09/2022,Staff Costs - Non-Perms,Projects,SmartSourcing,300040368,"14,348.54",Agency Staff & Contractor Costs,SME,788507869
BEIS,The Insolvency Service,09/09/2022,Staff Costs - Non-Perms,Projects,SmartSourcing,300040369,"9,486.29",Agency Staff & Contractor Costs,SME,788507869
BEIS,The Insolvency Service,09/09/2022,Staff Costs - Non-Perms,Shared Contracts,SmartSourcing,300040371,"13,800.00",Outside IR35 Non Perm Resource,SME,788507869
BEIS,The Insolvency Service,09/09/2022,Staff Costs - Non-Perms,Shared Contracts,SmartSourcing,300040372,"13,560.00",Outside IR35 Non Perm Resource,SME,788507869
BEIS,The Insolvency Service,09/09/2022,Staff Costs - Non-Perms,Shared Contracts,SmartSourcing,300040373,"18,348.00",Outside IR35 Non Perm Resource,SME,788507869
BEIS,The Insolvency Service,09/09/2022,Staff Costs - Non-Perms,Shared Contracts,SmartSourcing,300040374,"16,646.40",Outside IR35 Non Perm Resource,SME,788507869
BEIS,The Insolvency Service,09/09/2022,Staff Costs - Non-Perms,Shared Contracts,SmartSourcing,300040375,"16,632.00",Outside IR35 Non Perm Resource,SME,788507869
BEIS,The Insolvency Service,09/09/2022,Staff Costs - Non-Perms,Shared Contracts,SmartSourcing,300040376,"18,084.00",Outside IR35 Non Perm Resource,SME,788507869
BEIS,The Insolvency Service,09/09/2022,Staff Costs - Non-Perms,Projects,SmartSourcing,300040377,"12,544.51",Agency Staff & Contractor Costs,SME,788507869
BEIS,The Insolvency Service,09/09/2022,Estates - Property,Finance & Commercial,Exeter City Council (Rent/Ins),300040405,"50,346.30",Rent,Public Sector,
BEIS,The Insolvency Service,09/09/2022,ICT,Projects,NTT DATA UK LIMITED,300040396,"152,169.60",IT - Transform,Large,159334590
BEIS,The Insolvency Service,09/09/2022,Estates - Property,Finance & Commercial,CBRE Limited- Chatham,300040276,"34,073.70",Rent,,736317923
BEIS,The Insolvency Service,09/09/2022,Estates - Property,Finance & Commercial,CBRE Limited- Chatham,300040277,"34,073.70",Rent,,736317923
BEIS,The Insolvency Service,12/09/2022,Other Costs,Shared Contracts,Equifax Ltd,300040413,"20,229.60",Financial Searches,Large,565629213
BEIS,The Insolvency Service,12/09/2022,Training,People & Communications,KPMG LLP,300040422,"4,599.00",Training,Large,791788859
BEIS,The Insolvency Service,12/09/2022,Off-Site Storage,Official Receiver Services,Oasis UK Ltd,300040401,833.85,Storage - HQ,Large,931579211
BEIS,The Insolvency Service,12/09/2022,ICT,Projects,Equiniti ICS Ltd,300040388,"95,491.20",IT - Refresh,SME,
BEIS,The Insolvency Service,12/09/2022,"Printing, Stationary, Postage & Confidential Waste",Shared Contracts,PSL Print Management Ltd,300040408,"2,006.84",Printing and Reprographics,Large,448293129
BEIS,The Insolvency Service,12/09/2022,Estates - Property,Finance & Commercial,Vickery Holman (Exeter),300040402,"1,429.63",Landlord Service Charge,,52008956
BEIS,The Insolvency Service,13/09/2022,ICT,Digital Technology Services,Ibm Uk Ltd,300039514,"17,050.00",IT - Run,Large,107328000
BEIS,The Insolvency Service,13/09/2022,Training,People & Communications,KPMG,300040442,"1,984.80",Training,Large,
BEIS,The Insolvency Service,13/09/2022,HR,Investigations & Enforcement Services/Legal Services Division,Warwickshire Police & Crime Commissioner,300040423,552.00,Recruitment Costs,,
BEIS,The Insolvency Service,13/09/2022,ICT,Digital Technology Services,Experian Ltd,300040427,"9,783.60",IT - Run,Large,887133593
BEIS,The Insolvency Service,13/09/2022,ICT,Digital Technology Services,Experian Ltd,300040429,"2,182.56",IT - Run,Large,887133593
BEIS,The Insolvency Service,13/09/2022,Legal - Costs of Criminal Prosecutions and Advice,Legal Services Division,Police And Crime Commissioner For Hampshire,300040432,935.00,Costs of Criminal Prosecutions and Advice,Public Sector,
BEIS,The Insolvency Service,13/09/2022,ICT,Digital Technology Services,Ee Ltd (Air Time),300040418,844.80,Telephones - Charges,Large,771592016
BEIS,The Insolvency Service,13/09/2022,ICT,Digital Technology Services,Ee Ltd (Air Time),300040419,"19,433.54",Telephones - Charges,Large,771592016
BEIS,The Insolvency Service,13/09/2022,Legal - Outsourced Investigation,Official Receiver Services,Pricewaterhouse Coopers LLP,300040447,"25,160.14",Solicitors Investigations,Large,243823957
BEIS,The Insolvency Service,13/09/2022,ICT,Digital Technology Services,Netcompany UK Ltd,300040275,"1,557.60",IT - Run,Large,171809009
BEIS,The Insolvency Service,13/09/2022,Staff Costs - Non-Perms,Projects,SmartSourcing,300040356,"21,760.68",Agency Staff & Contractor Costs,SME,788507869
BEIS,The Insolvency Service,13/09/2022,Staff Costs - Non-Perms,Projects,SmartSourcing,300040362,"3,856.13",Agency Staff & Contractor Costs,SME,788507869
BEIS,The Insolvency Service,13/09/2022,Staff Costs - Non-Perms,Projects,SmartSourcing,300040366,"4,507.20",Agency Staff & Contractor Costs,SME,788507869
BEIS,The Insolvency Service,13/09/2022,ICT,Projects,Nomensa Limited,300040351,"29,625.00",IT - Transform,Large,771727411
BEIS,The Insolvency Service,13/09/2022,Estates - Property,Finance & Commercial,Kash Group Properties Ltd,300040420,"20,975.70",Rent,SME,180995664
BEIS,The Insolvency Service,13/09/2022,Estates - Property,Finance & Commercial,Kash Group Properties Ltd,300040420,"9,402.90",Landlord Service Charge,SME,180995664
BEIS,The Insolvency Service,13/09/2022,Training,"Strategy, Policy & Analysis",University of Glasgow,300040441,"1,111.00",Training,SME,671798093
BEIS,The Insolvency Service,13/09/2022,Staff Costs - Non-Perms,Finance & Commercial,Spinwell Global Ltd,300040399,"1,987.24",Agency Staff & Contractor Costs,,257189569
BEIS,The Insolvency Service,13/09/2022,Legal - Costs of Criminal Prosecutions and Advice,Legal Services Division,St Johns Buildings Barristers Chambers,300040426,506.76,Costs of Criminal Prosecutions and Advice,SME,944449692
BEIS,The Insolvency Service,14/09/2022,Legal - Costs of Recovering Civil Costs Awarded,Legal Services Division,Gowling WLG (UK) LLP,300040449,"6,399.60",Recovery of Civil Proceedings Costs Awarded,,858698838
BEIS,The Insolvency Service,14/09/2022,Legal - Costs of Civil Litigation Disqualifications,Legal Services Division,Gowling WLG (UK) LLP,300040451,"5,847.80",Costs of Civil Litigation Disqualifications,,858698838
BEIS,The Insolvency Service,14/09/2022,Legal - Outsourced Investigation,Investigations & Enforcement Services,Gowling WLG (UK) LLP,300040452,"28,896.40",Solicitors Investigations,,858698838
BEIS,The Insolvency Service,14/09/2022,Legal - Costs of Civil Litigation Disqualifications,Legal Services Division,Exchange Chambers,300040469,"1,100.00",Civil Litigation Disqualifications Counsel Fees,SME,
BEIS,The Insolvency Service,14/09/2022,Training,Legal Services Division,Exchange Chambers,300040475,600.00,Training,SME,
BEIS,The Insolvency Service,14/09/2022,Legal - Costs of Civil Litigation Disqualifications,Legal Services Division,Tlt Llp,300040456,"2,467.40",Costs of Civil Litigation Disqualifications,Large,3574583240
BEIS,The Insolvency Service,14/09/2022,Legal - Costs of Recovering Civil Costs Awarded,Legal Services Division,Tlt Llp,300040457,538.50,Recovery of Civil Proceedings Costs Awarded,Large,3574583240
BEIS,The Insolvency Service,14/09/2022,Staff Costs - Non-Perms,Shared Contracts,ALEXANDER MANN SOLUTIONS,300040290,"132,399.53",Agency Staff & Contractor Costs,Large,7444926120
BEIS,The Insolvency Service,14/09/2022,Staff Costs - Non-Perms,Projects,SmartSourcing,300040363,"18,354.67",Agency Staff & Contractor Costs,SME,788507869
BEIS,The Insolvency Service,14/09/2022,Legal - Costs of Civil Litigation Disqualifications,Legal Services Division,18 St John Street Chambers,300040471,"1,842.50",Civil Litigation Disqualifications Counsel Fees,SME,826858289
BEIS,The Insolvency Service,14/09/2022,Legal - Costs of Civil Litigation Disqualifications,Legal Services Division,Mills & Reeve LLP,300040453,"1,012.10",Costs of Civil Litigation Disqualifications,Large,104834588
BEIS,The Insolvency Service,14/09/2022,Legal - Outsourced Investigation,Investigations & Enforcement Services,Mills & Reeve LLP,300040454,"8,527.24",Solicitors Investigations,Large,104834588
BEIS,The Insolvency Service,14/09/2022,ICT,Digital Technology Services,Nomensa Limited,300040389,"274,667.08",IT - Run,Large,771727411
BEIS,The Insolvency Service,14/09/2022,ICT,Digital Technology Services,Gamma Telecom Limited,300040438,"1,634.18",Telephones - Charges,Large,823820344
BEIS,The Insolvency Service,15/09/2022,Legal - Outsourced Investigation,Investigations & Enforcement Services,Gowling WLG (UK) LLP,300040472,"13,898.30",Solicitors Investigations,,858698838
BEIS,The Insolvency Service,15/09/2022,Estates - Property,Finance & Commercial,Colliers International Property Consultants Ltd,300040498,"3,476.66",Landlord Service Charge,Large,158893550
BEIS,The Insolvency Service,15/09/2022,Estates - Property,Finance & Commercial,GPA (C/O Montagu Evans LLP),300040474,"2,636.14",Property Maintenance - CS2,Large,
BEIS,The Insolvency Service,15/09/2022,Staff Costs - Non-Perms,Projects,SmartSourcing,300040476,"5,634.00",Agency Staff & Contractor Costs,SME,788507869
BEIS,The Insolvency Service,15/09/2022,Staff Costs - Non-Perms,Projects,SmartSourcing,300040477,"4,820.16",Agency Staff & Contractor Costs,SME,788507869
BEIS,The Insolvency Service,15/09/2022,Staff Costs - Non-Perms,Projects,SmartSourcing,300040478,"5,270.16",Agency Staff & Contractor Costs,SME,788507869
BEIS,The Insolvency Service,15/09/2022,Staff Costs - Non-Perms,Shared Contracts,SmartSourcing,300040480,"22,968.00",Outside IR35 Non Perm Resource,SME,788507869
BEIS,The Insolvency Service,15/09/2022,Staff Costs - Non-Perms,Shared Contracts,SmartSourcing,300040482,"11,730.00",Outside IR35 Non Perm Resource,SME,788507869
BEIS,The Insolvency Service,15/09/2022,Estates - Property,Finance & Commercial,Oakley Property Ltd,300040500,"2,486.74",Landlord Service Charge,SME,754788085
BEIS,The Insolvency Service,15/09/2022,ICT,Chief Executive Office,Azeus UK Ltd,300040479,"6,840.00",IT - Run,,134141356
BEIS,The Insolvency Service,15/09/2022,Estates - Property,Finance & Commercial,Vickery Holman (Exeter),300040499,"13,866.29",Landlord Service Charge,,52008956
BEIS,The Insolvency Service,16/09/2022,Other Costs,Official Receiver Services,Royal Mail (Redirection),300040515,"3,672.00",Finance - OR Case Disbursements,Large,
BEIS,The Insolvency Service,16/09/2022,Estates - Property,Finance & Commercial,GPA (C/O Montagu Evans LLP),300029500,"52,660.69",Rent,Large,
BEIS,The Insolvency Service,16/09/2022,Estates - Property,Finance & Commercial,GPA (C/O Montagu Evans LLP),300029500,"12,333.33",Rent,Large,
BEIS,The Insolvency Service,16/09/2022,Estates - Property,Finance & Commercial,GPA (C/O Montagu Evans LLP),300031408,"3,243.61",Rent,Large,
BEIS,The Insolvency Service,16/09/2022,Estates - Property,Finance & Commercial,GPA (C/O Montagu Evans LLP),300031408,"32,660.73",Rent,Large,
BEIS,The Insolvency Service,16/09/2022,Legal - Costs of Criminal Prosecutions and Advice,Legal Services Division,Wace Morgan Solicitors,300040525,"1,106.72",Costs of Criminal Prosecutions and Advice,SME,220166160
BEIS,The Insolvency Service,20/09/2022,Estates - Property,Finance & Commercial,Acenes House Ltd,300040532,"3,360.00",Landlord Service Charge,SME,182696958
BEIS,The Insolvency Service,20/09/2022,Estates - Property,Finance & Commercial,Acenes House Ltd,300040532,"15,600.00",Rent,SME,182696958
BEIS,The Insolvency Service,20/09/2022,Training,Investigations & Enforcement Services,KPMG,300040533,640.00,Training,Large,
BEIS,The Insolvency Service,20/09/2022,Training,Investigations & Enforcement Services,KPMG,300040535,640,Training,Large,
BEIS,The Insolvency Service,20/09/2022,Training,Investigations & Enforcement Services,KPMG,300040536,640.00,Training,Large,
BEIS,The Insolvency Service,20/09/2022,Legal - Costs of Civil Litigation Disqualifications,Legal Services Division,Selbourne Chambers,300040529,880.00,Civil Litigation Disqualifications Counsel Fees,SME,1036299146
BEIS,The Insolvency Service,20/09/2022,Legal - Costs of Civil Litigation Disqualifications,Legal Services Division,4 Stone Buildings,300040530,660.00,Civil Litigation Disqualifications Counsel Fees,,
BEIS,The Insolvency Service,21/09/2022,Training,People & Communications,Capita Business Services Ltd,300040512,"5,772.70",Training,Large,618184140
BEIS,The Insolvency Service,21/09/2022,Training,People & Communications,Capita Business Services Ltd,300040513,942,Training,Large,618184140
BEIS,The Insolvency Service,21/09/2022,Training,People & Communications,Capita Business Services Ltd,300040514,"6,211.23",Training,Large,618184140
BEIS,The Insolvency Service,21/09/2022,Training,People & Communications,KPMG LLP,300040433,"2,500.00",Training,Large,791788859
BEIS,The Insolvency Service,21/09/2022,Training,People & Communications,KPMG LLP,300040435,"2,200.00",Training,Large,791788859
BEIS,The Insolvency Service,21/09/2022,Training,People & Communications,KPMG LLP,300040436,"2,770.00",Training,Large,791788859
BEIS,The Insolvency Service,21/09/2022,Off-Site Storage,Official Receiver Services,Shaping Cloud Ltd,300040546,"23,150.00",Storage - OR,,997694722
BEIS,The Insolvency Service,22/09/2022,"Legal, Translation & Consultancy",Finance & Commercial,Government Legal Department,300040582,"1,277.16",Legal Costs Other,Public Sector,888823066
BEIS,The Insolvency Service,22/09/2022,"Legal, Translation & Consultancy",Finance & Commercial,Government Legal Department,300040584,861.00,Legal Costs Other,Public Sector,888823066
BEIS,The Insolvency Service,22/09/2022,"Legal, Translation & Consultancy",Finance & Commercial,Government Legal Department,300040585,"3,560.06",Legal Costs Other,Public Sector,888823066
BEIS,The Insolvency Service,22/09/2022,Estates - Property,Investigations & Enforcement Services,Posturite (Uk) Ltd.,300040580,"1,079.89",Furniture,SME,583565114
BEIS,The Insolvency Service,22/09/2022,Estates - Property,Investigations & Enforcement Services,Posturite (Uk) Ltd.,300040581,943.26,Furniture,SME,583565114
BEIS,The Insolvency Service,22/09/2022,Investigation & Enforcement,Investigations & Enforcement Services,Intaforensics Ltd,300040579,"8,779.50",Case Related Costs,,900353372
BEIS,The Insolvency Service,22/09/2022,ICT,Digital Technology Services,Daisy Corporate Services Trading Limited,300040538,"11,786.00",IT - Run,Large,722471355
BEIS,The Insolvency Service,22/09/2022,Training,Digital Technology Services,KPMG LLP,300040537,963.00,Training,Large,791788859
BEIS,The Insolvency Service,22/09/2022,Staff Costs - Non-Perms,Shared Contracts,ALEXANDER MANN SOLUTIONS,300040545,"120,757.03",Agency Staff & Contractor Costs,Large,7444926120
BEIS,The Insolvency Service,22/09/2022,ICT,Digital Technology Services,Advanced 365 Limited,300040170,"133,280.42",IT - Run,Large,927547983
BEIS,The Insolvency Service,22/09/2022,ICT,Digital Technology Services,Phoenix Software Limited,300040528,"3,354.07",IT - Run,SME,755349015
BEIS,The Insolvency Service,22/09/2022,Training,Legal Services Division,CILEX,300040571,520.00,Training,,904444834
BEIS,The Insolvency Service,22/09/2022,Training,Legal Services Division,MBL (SEMINARS) LIMITED,300040570,540.00,Training,,816093826
BEIS,The Insolvency Service,23/09/2022,"Printing, Stationary, Postage & Confidential Waste",Business Service Division,Quadient UK,300040404,"23,460.86",Office machinery - Maintenance,Large,
BEIS,The Insolvency Service,23/09/2022,"Printing, Stationary, Postage & Confidential Waste",Shared Contracts,Royal Mail (Response Services),300040281,"1,047.44",Postage,Large,243170002
BEIS,The Insolvency Service,23/09/2022,ICT,Digital Technology Services,Daisy Corporate Services Trading Limited,300040604,"24,486.25",IT - Run,Large,722471355
BEIS,The Insolvency Service,23/09/2022,HR,Business Service Division,Cragg Ross Dawson Ltd,300040588,"1,020.00",Recruitment Costs,SME,289382407
BEIS,The Insolvency Service,23/09/2022,HR,Business Service Division,Cragg Ross Dawson Ltd,300040588,500.00,Recruitment Costs,SME,289382407
BEIS,The Insolvency Service,23/09/2022,Legal - Costs of Criminal Prosecutions and Advice,Legal Services Division,2 Harcourt Buildings,300040602,903.6,Costs of Criminal Prosecutions and Advice,SME,946426795
BEIS,The Insolvency Service,23/09/2022,ICT,Digital Technology Services,Nomensa Limited,300040572,"137,040.00",IT - Run,Large,771727411
BEIS,The Insolvency Service,23/09/2022,ICT,Digital Technology Services,Nomensa Limited,300040574,"94,200.00",IT - Run,Large,771727411
BEIS,The Insolvency Service,23/09/2022,ICT,Digital Technology Services,Equiniti ICS Ltd,300040578,"32,500.00",IT - Run,SME,
BEIS,The Insolvency Service,26/09/2022,Legal - Costs of Criminal Prosecutions and Advice,Legal Services Division,18 Red Lion Court Chambers,300040615,700.13,Costs of Criminal Prosecutions and Advice,SME,766793665
BEIS,The Insolvency Service,26/09/2022,ICT,Digital Technology Services,Charterhouse Voice and Data Limited,300034260,"20,687.92",Telephones - Charges,,311389028
BEIS,The Insolvency Service,27/09/2022,Training,People & Communications,KPMG LLP,300040507,"11,896.00",Training,Large,791788859
BEIS,The Insolvency Service,27/09/2022,Training,People & Communications,KPMG LLP,300040508,"2,200.00",Training,Large,791788859
BEIS,The Insolvency Service,27/09/2022,Training,People & Communications,KPMG LLP,300040534,"10,129.00",Training,Large,791788859
BEIS,The Insolvency Service,27/09/2022,Training,People & Communications,KPMG LLP,300040629,"39,130.00",Training,Large,791788859
BEIS,The Insolvency Service,27/09/2022,Training,Digital Technology Services,KPMG LLP,300040637,676.00,Training,Large,791788859
BEIS,The Insolvency Service,27/09/2022,Legal - Costs of Civil Litigation Disqualifications,Legal Services Division,Tlt Llp,300040526,"5,553.05",Costs of Civil Litigation Disqualifications,Large,3574583240
BEIS,The Insolvency Service,27/09/2022,Legal - Outsourced Investigation,Official Receiver Services,Pricewaterhouse Coopers LLP,300040640,"11,970.42",Solicitors Investigations,Large,243823957
BEIS,The Insolvency Service,27/09/2022,ICT,Digital Technology Services,Computacenter UK Ltd,300040614,"29,749.93",IT - Run,,490334648
BEIS,The Insolvency Service,27/09/2022,Staff Costs - Non-Perms,Finance & Commercial,Spinwell Global Ltd,300040518,"3,312.06",Agency Staff & Contractor Costs,,257189569
BEIS,The Insolvency Service,28/09/2022,"Printing, Stationary, Postage & Confidential Waste",Shared Contracts,Restore Datashred (Data Solutions 2016 Ltd T/A Restore Data),300040685,"1,557.74",Confidential Waste,Large,240193143
BEIS,The Insolvency Service,28/09/2022,Estates - Property,Finance & Commercial,Vickery Holman,300040644,"3,458.19",Landlord Service Charge,SME,
BEIS,The Insolvency Service,28/09/2022,Estates - Property,Finance & Commercial,Vickery Holman,300040645,"7,131.27",Landlord Service Charge,SME,
BEIS,The Insolvency Service,28/09/2022,Training,Finance & Commercial,Cabinet Office,300040646,"6,100.00",Training,Large,888801080
BEIS,The Insolvency Service,28/09/2022,Training,Finance & Commercial,Cabinet Office,300040647,"6,100.00",Training,Large,888801080
BEIS,The Insolvency Service,28/09/2022,Training,Chief Executive Office,KPMG LLP,300040651,898.00,Training,Large,791788859
BEIS,The Insolvency Service,28/09/2022,Training,Investigations & Enforcement Services,London Fraud Forum Ltd,300040661,"1,584.00",Training,,928273013
BEIS,The Insolvency Service,28/09/2022,Staff Costs - Non-Perms,Projects,SmartSourcing,300040569,"5,484.00",Agency Staff & Contractor Costs,SME,788507869
BEIS,The Insolvency Service,28/09/2022,Legal - Costs of Civil Litigation Disqualifications,Legal Services Division,Selbourne Chambers,300040666,600.00,Civil Litigation Disqualifications Counsel Fees,SME,1036299146
BEIS,The Insolvency Service,28/09/2022,ICT,Digital Technology Services,Charterhouse Voice and Data Limited,300040667,"25,005.53",Telephones - Charges,,311389028
BEIS,The Insolvency Service,28/09/2022,Legal - Costs of Civil Litigation Disqualifications,Legal Services Division,9 Stone Buildings,300040671,"1,125.00",Civil Litigation Disqualifications Counsel Fees,,168754953
BEIS,The Insolvency Service,28/09/2022,Estates - Property,Projects,Avison Young (Non Rent/Legal Advice),300040654,"20,736.00",Estates Professional Services,SME,
BEIS,The Insolvency Service,28/09/2022,ICT,Digital Technology Services,Phoenix Software Limited,300040653,"3,342.24",IT - Run,SME,755349015
BEIS,The Insolvency Service,28/09/2022,Estates - Property,Finance & Commercial,Vickery Holman (Exeter),300040642,"13,866.29",Landlord Service Charge,,52008956
BEIS,The Insolvency Service,29/09/2022,"Printing, Stationary, Postage & Confidential Waste",Business Service Division,Quadient UK,300040403,"16,660.99",Office supplies,Large,
BEIS,The Insolvency Service,29/09/2022,Training,People & Communications,BPP Professional Education,300040721,"2,450.00",Training,Large,466451629
BEIS,The Insolvency Service,29/09/2022,Estates - Property,Finance & Commercial,Edf Energy,300040692,978.47,Electricity,Large,523041202
BEIS,The Insolvency Service,29/09/2022,Estates - Property,Finance & Commercial,Edf Energy,300040716,818.03,Electricity,Large,523041202
BEIS,The Insolvency Service,29/09/2022,Staff Costs - Non-Perms,Shared Contracts,ALEXANDER MANN SOLUTIONS,300040655,"124,767.08",Agency Staff & Contractor Costs,Large,7444926120
BEIS,The Insolvency Service,29/09/2022,Staff Costs - Non-Perms,Shared Contracts,SmartSourcing,300040706,"15,180.00",Outside IR35 Non Perm Resource,SME,788507869
BEIS,The Insolvency Service,29/09/2022,Staff Costs - Non-Perms,Projects,SmartSourcing,300040724,"18,944.59",Agency Staff & Contractor Costs,SME,788507869
BEIS,The Insolvency Service,29/09/2022,Legal - Costs of Civil Litigation Disqualifications,Legal Services Division,Selbourne Chambers,300040728,760.00,Civil Litigation Disqualifications Counsel Fees,SME,1036299146
BEIS,The Insolvency Service,29/09/2022,Legal - Costs of Civil Litigation Disqualifications,Legal Services Division,9 Stone Buildings,300040670,600.00,Civil Litigation Disqualifications Counsel Fees,,168754953
BEIS,The Insolvency Service,29/09/2022,Legal - Costs of Civil Litigation Disqualifications,Legal Services Division,9 Stone Buildings,300040680,"1,250.00",Civil Litigation Disqualifications Counsel Fees,,168754953
BEIS,The Insolvency Service,29/09/2022,Legal - Costs of Civil Litigation Winding Up,Legal Services Division,9 Stone Buildings,300040683,"1,025.00",Civil Litigation Winding Up Counsel Fees,,168754953
BEIS,The Insolvency Service,29/09/2022,Staff Costs - Non-Perms,Projects,Red Snapper Recruitment,300040668,"3,300.00",Agency Staff & Contractor Costs,SME,835435718
BEIS,The Insolvency Service,29/09/2022,Estates - Property,Finance & Commercial,Bates Office Furniture,300040660,"4,305.22",Furniture,SME,696521207
BEIS,The Insolvency Service,29/09/2022,Staff Costs - Non-Perms,Finance & Commercial,Spinwell Global Ltd,300040690,"2,649.65",Agency Staff & Contractor Costs,,257189569
BEIS,The Insolvency Service,30/09/2022,Legal - Costs of Criminal Prosecutions and Advice,Legal Services Division,Exchange Chambers,300040741,"1,206.50",Costs of Criminal Prosecutions and Advice,SME,
BEIS,The Insolvency Service,30/09/2022,Training,Digital Technology Services,KPMG LLP,300040707,676.00,Training,Large,791788859
BEIS,The Insolvency Service,30/09/2022,Staff Costs - Non-Perms,Projects,SmartSourcing,300040722,"8,432.26",Agency Staff & Contractor Costs,SME,788507869
BEIS,The Insolvency Service,30/09/2022,Staff Costs - Non-Perms,Projects,SmartSourcing,300040723,"9,871.20",Agency Staff & Contractor Costs,SME,788507869
BEIS,The Insolvency Service,30/09/2022,Staff Costs - Non-Perms,Projects,SmartSourcing,300040725,"10,141.20",Agency Staff & Contractor Costs,SME,788507869
BEIS,The Insolvency Service,30/09/2022,Staff Costs - Non-Perms,Projects,SmartSourcing,300040726,"5,784.19",Agency Staff & Contractor Costs,SME,788507869
BEIS,The Insolvency Service,30/09/2022,Legal - Costs of Civil Litigation Disqualifications,Legal Services Division,South Square,300040742,630.00,Civil Litigation Disqualifications Counsel Fees,SME,843274916
BEIS,The Insolvency Service,30/09/2022,Legal - Costs of Civil Litigation Disqualifications,Legal Services Division,South Square,300040744,"2,820.00",Civil Litigation Disqualifications Counsel Fees,SME,843274916
BEIS,The Insolvency Service,30/09/2022,ICT,Digital Technology Services,Advanced 365 Limited,300040718,"32,230.00",IT - Run,Large,927547983
BEIS,The Insolvency Service,30/09/2022,Legal - Costs of Civil Litigation Winding Up,Legal Services Division,9 Stone Buildings,300040746,940.00,Civil Litigation Winding Up Counsel Fees,,277586642
BEIS,The Insolvency Service,30/09/2022,Legal - Costs of Civil Litigation Disqualifications,Legal Services Division,Kings Chambers Limited,300040740,"1,430.00",Civil Litigation Disqualifications Counsel Fees,,
BEIS,The Insolvency Service,30/09/2022,Training,Legal Services Division,MBL (SEMINARS) LIMITED,300040745,"2,850.00",Training,,816093826
